[Event "Titled Tuesday Blitz December 06 Late 2022"]
[White "Aghasiyev, Kamal"]
[Black "Miszler, Levente"]
[WhiteFideId "13402854"]
[BlackFideId "763276"]
[WhiteElo "2341"]
[BlackElo "2176"]
[Result "1-0"]
[Round "04"]
[TimeControl "180+1"]
[Date "2022.12.07"]
[WhiteClock "0:01:25"]
[BlackClock "0:00:23"]

1. d4 {[%clk 0:02:59]}  d5 {[%clk 0:02:56]} 2. c4 {[%clk 0:02:58]}  c6 {[%clk 0:02:56]} 3. Nf3 {[%clk 0:02:56]}  Nf6 {[%clk 0:02:56]} 4. Nc3 {[%clk 0:02:56]}  g6 {[%clk 0:02:54]} 5. e3 {[%clk 0:02:55]}  Bg7 {[%clk 0:02:53]} 6. h3 {[%clk 0:02:55]}  O-O {[%clk 0:02:54]} 7. Bd3 {[%clk 0:02:54]}  Re8 {[%clk 0:02:54]} 8. O-O {[%clk 0:02:53]}  Nbd7 {[%clk 0:02:54]} 9. cxd5 {[%clk 0:02:52]}  cxd5 {[%clk 0:02:54]} 10. a4 {[%clk 0:02:52]}  a6 {[%clk 0:02:52]} 11. a5 {[%clk 0:02:48]}  e5 {[%clk 0:02:51]} 12. dxe5 {[%clk 0:02:46]}  Nxe5 {[%clk 0:02:52]} 13. Nxe5 {[%clk 0:02:46]}  Rxe5 {[%clk 0:02:53]} 14. Ne2 {[%clk 0:02:40]}  Ne4 {[%clk 0:02:50]} 15. Bxe4 {[%clk 0:02:35]}  Rxe4 {[%clk 0:02:49]} 16. Bd2 {[%clk 0:02:35]}  Bxb2 {[%clk 0:02:34]} 17. Rb1 {[%clk 0:02:32]}  Bf6 {[%clk 0:02:34]} 18. Bc3 {[%clk 0:02:28]}  Be6 {[%clk 0:02:29]} 19. Rxb7 {[%clk 0:02:24]}  Rc4 {[%clk 0:02:22]} 20. Bxf6 {[%clk 0:02:22]}  Qxf6 {[%clk 0:02:23]} 21. Nd4 {[%clk 0:02:22]}  Re8 {[%clk 0:01:39]} 22. Rb6 {[%clk 0:02:19]}  Qg5 {[%clk 0:01:39]} 23. Qf3 {[%clk 0:02:15]}  Bc8 {[%clk 0:01:30]} 24. Rd6 {[%clk 0:02:11]}  Rc5 {[%clk 0:01:24]} 25. Nc6 {[%clk 0:01:54]}  Bb7 {[%clk 0:01:13]} 26. Nd4 {[%clk 0:01:46]}  Rxa5 {[%clk 0:01:04]} 27. Rc1 {[%clk 0:01:45]}  Bc8 {[%clk 0:00:54]} 28. Rb6 {[%clk 0:01:34]}  Ra4 {[%clk 0:00:36]} 29. Rb8 {[%clk 0:01:32]}  Rxd4 {[%clk 0:00:35]} 30. Rcxc8 {[%clk 0:01:26]}  Rxc8 {[%clk 0:00:22]} 31. Rxc8+ {[%clk 0:01:26]}  Kg7 {[%clk 0:00:23]} 32. exd4 {[%clk 0:01:26]}  Qc1+ {[%clk 0:00:23]} 33. Rxc1 {[%clk 0:01:25]} 1-0


[Site "https://www.chess.com"]

[Event "Titled Tuesday Blitz December 06 Late 2022"]
[White "Aldokhin, Ivan"]
[Black "Rose, Felix"]
[WhiteFideId "24115720"]
[BlackFideId "5105722"]
[WhiteElo "2313"]
[BlackElo "2039"]
[Result "0-1"]
[Round "04"]
[TimeControl "180+1"]
[Date "2022.12.07"]
[WhiteClock "0:00:03"]
[BlackClock "0:00:12"]

1. e4 {[%clk 0:00:58]}  c5 {[%clk 0:02:59]} 2. Nf3 {[%clk 0:00:59]}  e6 {[%clk 0:02:58]} 3. d4 {[%clk 0:00:59]}  cxd4 {[%clk 0:02:59]} 4. Nxd4 {[%clk 0:01:00]}  a6 {[%clk 0:03:00]} 5. Nc3 {[%clk 0:01:01]}  b5 {[%clk 0:03:00]} 6. Bd3 {[%clk 0:01:01]}  Bb7 {[%clk 0:03:00]} 7. O-O {[%clk 0:01:01]}  Nc6 {[%clk 0:03:01]} 8. Nxc6 {[%clk 0:01:01]}  Bxc6 {[%clk 0:03:01]} 9. Re1 {[%clk 0:01:02]}  Qb8 {[%clk 0:03:00]} 10. a4 {[%clk 0:01:00]}  Bd6 {[%clk 0:02:56]} 11. h3 {[%clk 0:00:55]}  b4 {[%clk 0:02:54]} 12. Nd5 {[%clk 0:00:54]}  Ne7 {[%clk 0:02:51]} 13. Nxe7 {[%clk 0:00:48]}  Bxe7 {[%clk 0:02:51]} 14. Qg4 {[%clk 0:00:49]}  Bf6 {[%clk 0:02:40]} 15. f4 {[%clk 0:00:30]}  h5 {[%clk 0:02:10]} 16. Qg3 {[%clk 0:00:28]}  h4 {[%clk 0:02:09]} 17. Qg4 {[%clk 0:00:23]}  Bd4+ {[%clk 0:02:02]} 18. Kh1 {[%clk 0:00:18]}  Qb7 {[%clk 0:01:50]} 19. Be3 {[%clk 0:00:16]}  Bxb2 {[%clk 0:01:46]} 20. e5 {[%clk 0:00:07]}  Bxa1 {[%clk 0:01:42]} 21. Rxa1 {[%clk 0:00:08]}  O-O-O {[%clk 0:01:35]} 22. Qe2 {[%clk 0:00:08]}  Kb8 {[%clk 0:01:29]} 23. Bxa6 {[%clk 0:00:07]}  Bxg2+ {[%clk 0:01:29]} 24. Kg1 {[%clk 0:00:07]}  Bf3 {[%clk 0:01:26]} 25. Qc4 {[%clk 0:00:04]}  Qe4 {[%clk 0:01:15]} 26. Qb5+ {[%clk 0:00:03]}  Ka8 {[%clk 0:01:15]} 27. Qc5 {[%clk 0:00:03]}  Qxe3+ {[%clk 0:00:35]} 28. Qxe3 {[%clk 0:00:01]}  Bc6 {[%clk 0:00:34]} 29. Bb5 {[%clk 0:00:02]}  Bd5 {[%clk 0:00:33]} 30. Qb6 {[%clk 0:00:02]}  Rc8 {[%clk 0:00:23]} 31. Qa5+ {[%clk 0:00:02]}  Kb8 {[%clk 0:00:23]} 32. Rd1 {[%clk 0:00:03]}  Rxc2 {[%clk 0:00:19]} 33. Rxd5 {[%clk 0:00:02]}  exd5 {[%clk 0:00:18]} 34. Qxb4 {[%clk 0:00:03]}  Kc7 {[%clk 0:00:15]} 35. Qa5+ {[%clk 0:00:03]}  Kb7 {[%clk 0:00:15]} 36. Qa6+ {[%clk 0:00:03]}  Kb8 {[%clk 0:00:15]} 37. Qb6+ {[%clk 0:00:03]}  Ka8 {[%clk 0:00:15]} 38. Bxd7 {[%clk 0:00:03]}  Rh6 {[%clk 0:00:12]} 39. Qa5+ {[%clk 0:00:03]}  Kb7 {[%clk 0:00:12]} 40. Qb4+ {[%clk 0:00:03]}  Kc7 {[%clk 0:00:12]} 41. Bb5 {[%clk 0:00:03]}  Rg6+ {[%clk 0:00:12]} 42. Kf1 {[%clk 0:00:03]}  Rg3 {[%clk 0:00:12]} 43. Qd6+ {[%clk 0:00:02]}  Kb7 {[%clk 0:00:11]} 44. Qxd5+ {[%clk 0:00:02]}  Kb6 {[%clk 0:00:12]} 45. Qd6+ {[%clk 0:00:03]}  Ka5 {[%clk 0:00:12]} 46. Bd3 {[%clk 0:00:03]}  Rf3+ {[%clk 0:00:12]} 47. Ke1 {[%clk 0:00:03]}  Rc3 {[%clk 0:00:11]} 48. Qd8+ {[%clk 0:00:02]}  Kb4 {[%clk 0:00:11]} 49. Qd4+ {[%clk 0:00:02]}  Kb3 {[%clk 0:00:11]} 50. Be2 {[%clk 0:00:03]}  Rfe3 {[%clk 0:00:12]} 51. Qb6+ {[%clk 0:00:03]}  Kc2 {[%clk 0:00:12]} 52. Qb5 {[%clk 0:00:03]}  Rxh3 {[%clk 0:00:11]} 53. a5 {[%clk 0:00:03]}  Rh1+ {[%clk 0:00:11]} 54. Kf2 {[%clk 0:00:03]}  Rh2+ {[%clk 0:00:12]} 0-1


[Site "https://www.chess.com"]

[Event "Titled Tuesday Blitz December 06 Late 2022"]
[White "Ambartsumova, Karina"]
[Black "Yoo, Christopher Woojin"]
[WhiteFideId "4166299"]
[BlackFideId "30909694"]
[WhiteElo "2319"]
[BlackElo "2463"]
[Result "0-1"]
[Round "04"]
[TimeControl "180+1"]
[Date "2022.12.06"]
[WhiteClock "0:00:47"]
[BlackClock "0:01:44"]

1. Nf3 {[%clk 0:03:00]}  d5 {[%clk 0:02:59]} 2. d4 {[%clk 0:02:59]}  Nf6 {[%clk 0:02:57]} 3. c4 {[%clk 0:02:59]}  e6 {[%clk 0:02:55]} 4. Nc3 {[%clk 0:02:59]}  Bb4 {[%clk 0:02:54]} 5. Qa4+ {[%clk 0:02:56]}  Nc6 {[%clk 0:02:54]} 6. e3 {[%clk 0:02:56]}  O-O {[%clk 0:02:51]} 7. Bd2 {[%clk 0:02:56]}  Re8 {[%clk 0:02:50]} 8. Qc2 {[%clk 0:02:56]}  Bf8 {[%clk 0:02:44]} 9. h3 {[%clk 0:02:52]}  a6 {[%clk 0:02:34]} 10. a3 {[%clk 0:02:43]}  h6 {[%clk 0:02:31]} 11. cxd5 {[%clk 0:02:30]}  exd5 {[%clk 0:02:29]} 12. Bd3 {[%clk 0:02:31]}  Bd6 {[%clk 0:02:29]} 13. O-O {[%clk 0:02:31]}  Be6 {[%clk 0:02:13]} 14. b4 {[%clk 0:02:26]}  Qc8 {[%clk 0:02:06]} 15. Be2 {[%clk 0:01:06]}  Bxh3 {[%clk 0:02:01]} 16. gxh3 {[%clk 0:01:06]}  Qxh3 {[%clk 0:02:00]} 17. Ne5 {[%clk 0:00:58]}  Nxe5 {[%clk 0:01:45]} 18. dxe5 {[%clk 0:00:59]}  Rxe5 {[%clk 0:01:45]} 19. f4 {[%clk 0:00:51]}  Rg5+ {[%clk 0:01:45]} 20. fxg5 {[%clk 0:00:47]}  Qh2# {[%clk 0:01:44]} 0-1


[Site "https://www.chess.com"]

[Event "Titled Tuesday Blitz December 06 Late 2022"]
[White "Andreikin, Dmitry"]
[Black "Dardha, Daniel"]
[WhiteFideId "4158814"]
[BlackFideId "240990"]
[WhiteElo "2735"]
[BlackElo "2528"]
[Result "1-0"]
[Round "04"]
[TimeControl "180+1"]
[Date "2022.12.06"]
[WhiteClock "0:01:53"]
[BlackClock "0:01:30"]

1. d4 {[%clk 0:03:00]}  d5 {[%clk 0:02:58]} 2. c4 {[%clk 0:03:00]}  e6 {[%clk 0:02:58]} 3. Nf3 {[%clk 0:02:57]}  Nf6 {[%clk 0:02:58]} 4. g3 {[%clk 0:02:57]}  Bb4+ {[%clk 0:02:58]} 5. Nbd2 {[%clk 0:02:56]}  O-O {[%clk 0:02:56]} 6. Bg2 {[%clk 0:02:53]}  dxc4 {[%clk 0:02:56]} 7. Qc2 {[%clk 0:02:51]}  b5 {[%clk 0:02:49]} 8. a4 {[%clk 0:02:50]}  bxa4 {[%clk 0:02:49]} 9. O-O {[%clk 0:02:44]}  Bb7 {[%clk 0:02:47]} 10. Nxc4 {[%clk 0:02:41]}  a5 {[%clk 0:02:39]} 11. Rd1 {[%clk 0:02:35]}  Nbd7 {[%clk 0:02:36]} 12. Bg5 {[%clk 0:02:08]}  h6 {[%clk 0:02:28]} 13. Bxf6 {[%clk 0:02:08]}  Qxf6 {[%clk 0:02:05]} 14. Nfe5 {[%clk 0:01:55]}  Bxg2 {[%clk 0:01:40]} 15. Nxd7 {[%clk 0:01:54]}  Qe7 {[%clk 0:01:30]} 16. Nxf8 {[%clk 0:01:53]} 1-0


[Site "https://www.chess.com"]

[Event "Titled Tuesday Blitz December 06 Late 2022"]
[White "Arnold, Ken"]
[Black "Kim, Sergey"]
[WhiteFideId "2056836"]
[BlackFideId "13700570"]
[WhiteElo "2409"]
[BlackElo "2606"]
[Result "1-0"]
[Round "04"]
[TimeControl "180+1"]
[Date "2022.12.07"]
[WhiteClock "0:00:15"]
[BlackClock "0:00:10"]

1. d4 {[%clk 0:03:00]}  Nf6 {[%clk 0:02:59]} 2. Nf3 {[%clk 0:03:01]}  g6 {[%clk 0:02:59]} 3. Bf4 {[%clk 0:03:01]}  Bg7 {[%clk 0:03:00]} 4. e3 {[%clk 0:03:01]}  d6 {[%clk 0:03:00]} 5. c3 {[%clk 0:03:02]}  O-O {[%clk 0:02:59]} 6. Be2 {[%clk 0:03:02]}  Nbd7 {[%clk 0:02:59]} 7. h3 {[%clk 0:03:02]}  b6 {[%clk 0:02:59]} 8. Nbd2 {[%clk 0:03:02]}  Bb7 {[%clk 0:03:00]} 9. O-O {[%clk 0:03:02]}  Ne4 {[%clk 0:03:00]} 10. Nxe4 {[%clk 0:03:02]}  Bxe4 {[%clk 0:03:00]} 11. Nd2 {[%clk 0:03:01]}  Bb7 {[%clk 0:03:00]} 12. Bf3 {[%clk 0:03:01]}  Qc8 {[%clk 0:03:01]} 13. a4 {[%clk 0:02:59]}  a5 {[%clk 0:03:00]} 14. Re1 {[%clk 0:02:57]}  e5 {[%clk 0:02:59]} 15. Bh2 {[%clk 0:02:54]}  Re8 {[%clk 0:02:59]} 16. dxe5 {[%clk 0:02:53]}  Nxe5 {[%clk 0:02:58]} 17. Bxb7 {[%clk 0:02:52]}  Qxb7 {[%clk 0:02:57]} 18. Nf3 {[%clk 0:02:51]}  Rad8 {[%clk 0:02:42]} 19. Nd4 {[%clk 0:02:47]}  f5 {[%clk 0:02:26]} 20. Qc2 {[%clk 0:02:44]}  Kh8 {[%clk 0:02:17]} 21. Rad1 {[%clk 0:02:43]}  h6 {[%clk 0:02:15]} 22. Re2 {[%clk 0:02:40]}  Kh7 {[%clk 0:02:13]} 23. Rde1 {[%clk 0:02:38]}  Qe4 {[%clk 0:02:07]} 24. Qb3 {[%clk 0:02:23]}  Nd3 {[%clk 0:02:02]} 25. Rd1 {[%clk 0:02:17]}  Nc5 {[%clk 0:01:55]} 26. Qa2 {[%clk 0:02:03]}  Re7 {[%clk 0:01:46]} 27. f3 {[%clk 0:01:50]}  Qb7 {[%clk 0:01:44]} 28. Kf1 {[%clk 0:01:47]}  Rde8 {[%clk 0:01:41]} 29. Bg1 {[%clk 0:01:46]}  Ne6 {[%clk 0:01:24]} 30. Rde1 {[%clk 0:01:30]}  Qa6 {[%clk 0:01:17]} 31. Nb5 {[%clk 0:01:26]}  Nc5 {[%clk 0:01:11]} 32. Qc4 {[%clk 0:01:23]}  Qb7 {[%clk 0:01:06]} 33. Bf2 {[%clk 0:01:16]}  d5 {[%clk 0:01:03]} 34. Qa2 {[%clk 0:01:10]}  Nd3 {[%clk 0:00:59]} 35. Rd1 {[%clk 0:01:10]}  Nxf2 {[%clk 0:00:57]} 36. Kxf2 {[%clk 0:01:10]}  f4 {[%clk 0:00:56]} 37. Rxd5 {[%clk 0:00:46]}  fxe3+ {[%clk 0:00:48]} 38. Kf1 {[%clk 0:00:38]}  Qc6 {[%clk 0:00:39]} 39. Nd4 {[%clk 0:00:36]}  Qf6 {[%clk 0:00:28]} 40. Qb1 {[%clk 0:00:34]}  Qf4 {[%clk 0:00:26]} 41. Kg1 {[%clk 0:00:29]}  Be5 {[%clk 0:00:24]} 42. Rxe5 {[%clk 0:00:28]}  Rxe5 {[%clk 0:00:23]} 43. Qd3 {[%clk 0:00:23]}  c5 {[%clk 0:00:21]} 44. Nb5 {[%clk 0:00:22]}  R5e6 {[%clk 0:00:20]} 45. Qd7+ {[%clk 0:00:19]}  R8e7 {[%clk 0:00:20]} 46. Qd3 {[%clk 0:00:18]}  c4 {[%clk 0:00:20]} 47. Qd4 {[%clk 0:00:17]}  Qxd4 {[%clk 0:00:20]} 48. cxd4 {[%clk 0:00:17]}  Rd7 {[%clk 0:00:19]} 49. g3 {[%clk 0:00:18]}  Rd5 {[%clk 0:00:18]} 50. f4 {[%clk 0:00:18]}  g5 {[%clk 0:00:19]} 51. fxg5 {[%clk 0:00:18]}  hxg5 {[%clk 0:00:19]} 52. Kg2 {[%clk 0:00:18]}  Kg6 {[%clk 0:00:19]} 53. Kf3 {[%clk 0:00:18]}  Rf5+ {[%clk 0:00:18]} 54. Kg2 {[%clk 0:00:18]}  g4 {[%clk 0:00:17]} 55. hxg4 {[%clk 0:00:18]}  Rd5 {[%clk 0:00:16]} 56. Nc7 {[%clk 0:00:16]}  Red6 {[%clk 0:00:14]} 57. Nxd5 {[%clk 0:00:16]}  Rxd5 {[%clk 0:00:15]} 58. Rxe3 {[%clk 0:00:17]}  Rxd4 {[%clk 0:00:16]} 59. Kf3 {[%clk 0:00:17]}  Rd6 {[%clk 0:00:13]} 60. Re4 {[%clk 0:00:16]}  Rd3+ {[%clk 0:00:12]} 61. Kf4 {[%clk 0:00:17]}  Rb3 {[%clk 0:00:12]} 62. Rxc4 {[%clk 0:00:16]}  Rxb2 {[%clk 0:00:12]} 63. Re4 {[%clk 0:00:17]}  Rb4 {[%clk 0:00:11]} 64. Ke5 {[%clk 0:00:15]}  Rb3 {[%clk 0:00:10]} 65. Kd5 {[%clk 0:00:15]}  Kg5 {[%clk 0:00:10]} 66. Kc6 {[%clk 0:00:13]}  Rb2 {[%clk 0:00:09]} 67. Re5+ {[%clk 0:00:14]}  Kxg4 {[%clk 0:00:09]} 68. Rb5 {[%clk 0:00:15]}  Rc2+ {[%clk 0:00:08]} 69. Kxb6 {[%clk 0:00:15]}  Rc4 {[%clk 0:00:09]} 70. Kxa5 {[%clk 0:00:15]}  Rc3 {[%clk 0:00:09]} 71. Rb4+ {[%clk 0:00:15]}  Kxg3 {[%clk 0:00:09]} 72. Kb5 {[%clk 0:00:15]}  Kf3 {[%clk 0:00:07]} 73. a5 {[%clk 0:00:16]}  Ra3 {[%clk 0:00:08]} 74. a6 {[%clk 0:00:15]}  Ke3 {[%clk 0:00:09]} 75. Ra4 {[%clk 0:00:15]}  Kd3 {[%clk 0:00:10]} 76. Rxa3+ {[%clk 0:00:15]} 1-0


[Site "https://www.chess.com"]

[Event "Titled Tuesday Blitz December 06 Late 2022"]
[White "Averjanov, Alexey"]
[Black "Mazurkiewicz, Michal"]
[WhiteFideId "14109867"]
[BlackFideId "1124943"]
[WhiteElo "2668"]
[BlackElo "2440"]
[Result "1/2-1/2"]
[Round "04"]
[TimeControl "180+1"]
[Date "2022.12.07"]
[WhiteClock "0:00:19"]
[BlackClock "0:00:06"]

1. d4 {[%clk 0:03:00]}  Nf6 {[%clk 0:02:59]} 2. c4 {[%clk 0:03:00]}  e5 {[%clk 0:03:00]} 3. dxe5 {[%clk 0:03:00]}  Ng4 {[%clk 0:03:00]} 4. Nf3 {[%clk 0:02:58]}  Bc5 {[%clk 0:03:00]} 5. e3 {[%clk 0:02:58]}  Nc6 {[%clk 0:03:01]} 6. b3 {[%clk 0:02:58]}  O-O {[%clk 0:03:01]} 7. Bb2 {[%clk 0:02:58]}  Re8 {[%clk 0:03:02]} 8. Be2 {[%clk 0:02:55]}  a5 {[%clk 0:03:02]} 9. Nbd2 {[%clk 0:02:53]}  Ncxe5 {[%clk 0:03:01]} 10. Nxe5 {[%clk 0:02:53]}  Nxe5 {[%clk 0:03:02]} 11. Nf3 {[%clk 0:02:53]}  Bb4+ {[%clk 0:02:58]} 12. Nd2 {[%clk 0:02:52]}  Ra6 {[%clk 0:02:57]} 13. a3 {[%clk 0:02:51]}  Bc5 {[%clk 0:02:57]} 14. Nf3 {[%clk 0:02:50]}  Nxf3+ {[%clk 0:02:52]} 15. Bxf3 {[%clk 0:02:50]}  Rg6 {[%clk 0:02:53]} 16. Bd4 {[%clk 0:02:48]}  Qe7 {[%clk 0:02:52]} 17. Bxc5 {[%clk 0:02:45]}  Qxc5 {[%clk 0:02:53]} 18. Qd5 {[%clk 0:02:38]}  Qb6 {[%clk 0:02:16]} 19. Qb5 {[%clk 0:02:30]}  Qf6 {[%clk 0:01:45]} 20. Rc1 {[%clk 0:02:20]}  Re5 {[%clk 0:01:26]} 21. c5 {[%clk 0:02:15]}  b6 {[%clk 0:01:02]} 22. b4 {[%clk 0:02:14]}  axb4 {[%clk 0:00:48]} 23. axb4 {[%clk 0:02:14]}  h5 {[%clk 0:00:46]} 24. Qe2 {[%clk 0:02:07]}  h4 {[%clk 0:00:44]} 25. h3 {[%clk 0:02:03]}  bxc5 {[%clk 0:00:29]} 26. bxc5 {[%clk 0:02:03]}  Ba6 {[%clk 0:00:29]} 27. Qd2 {[%clk 0:01:56]}  Bb5 {[%clk 0:00:26]} 28. Qd4 {[%clk 0:01:44]}  Rgg5 {[%clk 0:00:14]} 29. Qxh4 {[%clk 0:01:33]}  Bc6 {[%clk 0:00:14]} 30. Rb1 {[%clk 0:01:11]}  Re8 {[%clk 0:00:06]} 31. Bxc6 {[%clk 0:01:06]}  dxc6 {[%clk 0:00:07]} 32. Kf1 {[%clk 0:00:55]}  Qg6 {[%clk 0:00:06]} 33. Rd1 {[%clk 0:00:46]}  Rxg2 {[%clk 0:00:06]} 34. Rd8 {[%clk 0:00:45]}  Rxd8 {[%clk 0:00:06]} 35. Qxd8+ {[%clk 0:00:45]}  Kh7 {[%clk 0:00:07]} 36. Qh4+ {[%clk 0:00:45]}  Kg8 {[%clk 0:00:07]} 37. Qd8+ {[%clk 0:00:40]}  Kh7 {[%clk 0:00:06]} 38. Qh4+ {[%clk 0:00:27]}  Kg8 {[%clk 0:00:06]} 39. Qd8+ {[%clk 0:00:19]} 1/2-1/2


[Site "https://www.chess.com"]

[Event "Titled Tuesday Blitz December 06 Late 2022"]
[White "Bazeev, German"]
[Black "Ezat, Mohamed"]
[WhiteFideId "24119350"]
[BlackFideId "10600906"]
[WhiteElo "2501"]
[BlackElo "2388"]
[Result "1/2-1/2"]
[Round "04"]
[TimeControl "180+1"]
[Date "2022.12.06"]
[WhiteClock "0:00:43"]
[BlackClock "0:00:22"]

1. d4 {[%clk 0:02:16]}  Nf6 {[%clk 0:02:57]} 2. Bg5 {[%clk 0:02:16]}  d5 {[%clk 0:02:51]} 3. Nd2 {[%clk 0:02:14]}  Nbd7 {[%clk 0:02:50]} 4. e3 {[%clk 0:02:14]}  g6 {[%clk 0:02:46]} 5. Ngf3 {[%clk 0:01:53]}  Bg7 {[%clk 0:02:45]} 6. c4 {[%clk 0:01:54]}  O-O {[%clk 0:02:42]} 7. cxd5 {[%clk 0:01:51]}  Nxd5 {[%clk 0:02:42]} 8. Bc4 {[%clk 0:01:51]}  N5b6 {[%clk 0:02:40]} 9. Bb3 {[%clk 0:01:36]}  c5 {[%clk 0:02:36]} 10. O-O {[%clk 0:01:33]}  h6 {[%clk 0:02:33]} 11. Bh4 {[%clk 0:01:28]}  cxd4 {[%clk 0:02:32]} 12. Nxd4 {[%clk 0:01:04]}  Nc5 {[%clk 0:02:32]} 13. Bc2 {[%clk 0:01:04]}  g5 {[%clk 0:02:00]} 14. Bg3 {[%clk 0:01:03]}  e5 {[%clk 0:02:00]} 15. Nf5 {[%clk 0:01:02]}  Bxf5 {[%clk 0:01:54]} 16. Bxf5 {[%clk 0:01:03]}  Nd5 {[%clk 0:01:41]} 17. Ne4 {[%clk 0:01:02]}  Ne7 {[%clk 0:01:29]} 18. Qf3 {[%clk 0:00:47]}  Nxf5 {[%clk 0:01:13]} 19. Qxf5 {[%clk 0:00:48]}  Nxe4 {[%clk 0:01:10]} 20. Qxe4 {[%clk 0:00:47]}  f5 {[%clk 0:01:09]} 21. Qc4+ {[%clk 0:00:46]}  Kh8 {[%clk 0:01:08]} 22. f3 {[%clk 0:00:44]}  Qb6 {[%clk 0:01:05]} 23. Qb3 {[%clk 0:00:44]}  Qxb3 {[%clk 0:00:28]} 24. axb3 {[%clk 0:00:45]}  a6 {[%clk 0:00:28]} 25. e4 {[%clk 0:00:44]}  Rac8 {[%clk 0:00:25]} 26. Rac1 {[%clk 0:00:44]}  fxe4 {[%clk 0:00:21]} 27. Rxc8 {[%clk 0:00:41]}  Rxc8 {[%clk 0:00:21]} 28. fxe4 {[%clk 0:00:41]}  Rc2 {[%clk 0:00:21]} 29. Rf2 {[%clk 0:00:42]}  Rc1+ {[%clk 0:00:21]} 30. Rf1 {[%clk 0:00:42]}  Rc2 {[%clk 0:00:22]} 31. Rf2 {[%clk 0:00:42]}  Rc1+ {[%clk 0:00:22]} 32. Rf1 {[%clk 0:00:43]}  Rc2 {[%clk 0:00:22]} 1/2-1/2


[Site "https://www.chess.com"]

[Event "Titled Tuesday Blitz December 06 Late 2022"]
[White "Bilan, Danila"]
[Black "Rendle, Thomas E"]
[WhiteFideId "24161918"]
[BlackFideId "408760"]
[WhiteElo "2530"]
[BlackElo "2682"]
[Result "0-1"]
[Round "04"]
[TimeControl "180+1"]
[Date "2022.12.07"]
[WhiteClock "0:00:06"]
[BlackClock "0:00:15"]

1. d4 {[%clk 0:03:00]}  f5 {[%clk 0:02:55]} 2. Nf3 {[%clk 0:03:00]}  Nf6 {[%clk 0:02:55]} 3. g3 {[%clk 0:03:01]}  g6 {[%clk 0:02:52]} 4. Bg2 {[%clk 0:03:01]}  Bg7 {[%clk 0:02:52]} 5. O-O {[%clk 0:03:02]}  O-O {[%clk 0:02:53]} 6. c4 {[%clk 0:03:02]}  d6 {[%clk 0:02:53]} 7. Nc3 {[%clk 0:03:02]}  Nc6 {[%clk 0:02:53]} 8. d5 {[%clk 0:02:57]}  Na5 {[%clk 0:02:53]} 9. Nd2 {[%clk 0:02:53]}  c5 {[%clk 0:02:52]} 10. Qc2 {[%clk 0:02:51]}  a6 {[%clk 0:02:49]} 11. b3 {[%clk 0:02:40]}  Rb8 {[%clk 0:02:47]} 12. Bb2 {[%clk 0:02:30]}  b5 {[%clk 0:02:47]} 13. Rab1 {[%clk 0:02:29]}  g5 {[%clk 0:02:39]} 14. Nd1 {[%clk 0:01:49]}  Qe8 {[%clk 0:02:32]} 15. e4 {[%clk 0:01:31]}  f4 {[%clk 0:02:30]} 16. e5 {[%clk 0:01:29]}  Ng4 {[%clk 0:01:59]} 17. e6 {[%clk 0:01:18]}  Bxb2 {[%clk 0:01:55]} 18. Nxb2 {[%clk 0:01:01]}  Qh5 {[%clk 0:01:18]} 19. h3 {[%clk 0:00:54]}  Ne5 {[%clk 0:01:18]} 20. g4 {[%clk 0:00:33]}  Qh4 {[%clk 0:01:18]} 21. Qe4 {[%clk 0:00:29]}  Rf6 {[%clk 0:00:46]} 22. Nf3 {[%clk 0:00:19]}  Nxf3+ {[%clk 0:00:46]} 23. Qxf3 {[%clk 0:00:20]}  Bb7 {[%clk 0:00:46]} 24. Qc3 {[%clk 0:00:12]}  b4 {[%clk 0:00:43]} 25. Qf3 {[%clk 0:00:10]}  Rxe6 {[%clk 0:00:42]} 26. Nd3 {[%clk 0:00:07]}  Qh6 {[%clk 0:00:37]} 27. Rbe1 {[%clk 0:00:06]}  Rxe1 {[%clk 0:00:35]} 28. Rxe1 {[%clk 0:00:06]}  Qf6 {[%clk 0:00:35]} 29. Qe4 {[%clk 0:00:06]}  Re8 {[%clk 0:00:34]} 30. Bf3 {[%clk 0:00:06]}  Bc8 {[%clk 0:00:33]} 31. Kg2 {[%clk 0:00:06]}  Nb7 {[%clk 0:00:33]} 32. Bd1 {[%clk 0:00:06]}  Nd8 {[%clk 0:00:33]} 33. Bc2 {[%clk 0:00:07]}  Nf7 {[%clk 0:00:31]} 34. f3 {[%clk 0:00:04]}  Nh8 {[%clk 0:00:29]} 35. Nf2 {[%clk 0:00:04]}  Ng6 {[%clk 0:00:29]} 36. Kh2 {[%clk 0:00:04]}  Rf8 {[%clk 0:00:26]} 37. Re2 {[%clk 0:00:04]}  Rf7 {[%clk 0:00:26]} 38. Re1 {[%clk 0:00:04]}  Ne5 {[%clk 0:00:25]} 39. Re2 {[%clk 0:00:04]}  Bd7 {[%clk 0:00:25]} 40. Kg2 {[%clk 0:00:04]}  Be8 {[%clk 0:00:25]} 41. Re1 {[%clk 0:00:02]}  Rg7 {[%clk 0:00:25]} 42. Qe2 {[%clk 0:00:02]}  h5 {[%clk 0:00:25]} 43. Ne4 {[%clk 0:00:02]}  Qh6 {[%clk 0:00:25]} 44. Rh1 {[%clk 0:00:03]}  Rh7 {[%clk 0:00:25]} 45. Qd1 {[%clk 0:00:03]}  Bd7 {[%clk 0:00:24]} 46. Nf2 {[%clk 0:00:03]}  Rf7 {[%clk 0:00:23]} 47. Be4 {[%clk 0:00:04]}  Kg7 {[%clk 0:00:17]} 48. Qa1 {[%clk 0:00:04]}  Rf6 {[%clk 0:00:17]} 49. a3 {[%clk 0:00:05]}  a5 {[%clk 0:00:16]} 50. axb4 {[%clk 0:00:06]}  axb4 {[%clk 0:00:17]} 51. Qa7 {[%clk 0:00:06]}  Rf7 {[%clk 0:00:17]} 52. Ra1 {[%clk 0:00:06]}  hxg4 {[%clk 0:00:17]} 53. hxg4 {[%clk 0:00:07]}  Qh4 {[%clk 0:00:17]} 54. Rh1 {[%clk 0:00:07]}  Qg3+ {[%clk 0:00:17]} 55. Kf1 {[%clk 0:00:08]}  Nxf3 {[%clk 0:00:17]} 56. Rh3 {[%clk 0:00:08]}  Qg1+ {[%clk 0:00:16]} 57. Ke2 {[%clk 0:00:09]}  Nd4+ {[%clk 0:00:16]} 58. Kd3 {[%clk 0:00:09]}  Qxf2 {[%clk 0:00:16]} 59. Qxd7 {[%clk 0:00:08]}  Qf1+ {[%clk 0:00:15]} 60. Kd2 {[%clk 0:00:06]}  Qxh3 {[%clk 0:00:15]} 0-1


[Site "https://www.chess.com"]